bitfinex/quotes_SOLUSD_20241121
["timestamp","ask_amount","ask_price","bid_price","bid_amount"]
[1732164362766,23.86349301,240.57,240.47,23.86349301]
[1732164362930,23.86349301,240.53,240.45,23.86349301]
[1732164363129,23.86349301,240.53,240.45,23.96349301]
[1732164364935,23.86349301,240.51,240.45,0.1]
[1732164365136,13.2127,240.59,240.41,0.1]
[1732164365137,23.86349301,240.47,240.41,0.1]
[1732164366142,23.86349301,240.45,240.37,23.86349301]
[1732164367358,23.86349301,240.47,240.39,23.86349301]
[1732164367673,23.86349301,240.49,240.39,23.86349301]
[1732164367974,23.86349301,240.49,240.41,23.86349301]
[1732164368146,23.86349301,240.51,240.43,23.86349301]
[1732164369840,30.1765,240.55,240.47,23.86349301]
[1732164369841,54.03999301,240.55,240.47,23.86349301]
[1732164370167,30.1765,240.55,240.5,23.86349301]
[1732164370378,54.03999301,240.55,240.48,29.54061593]
[1732164370746,54.03999301,240.55,240.48,5.67712292]
[1732164371749,23.86349301,240.53,240.48,0.1]
[1732164371948,30.1765,240.55,240.48,0.1]
[1732164371949,54.03999301,240.55,240.48,0.1]
[1732164372153,30.1765,240.55,240.5,23.86349301]
[1732164372753,13.2127,240.59,240.5,23.86349301]
[1732164372945,37.07619301,240.59,240.5,23.86349301]
[1732164373151,37.07619301,240.59,240.52,23.86349301]
[1732164375248,37.07619301,240.59,240.5,23.86349301]
[1732164375644,23.86349301,240.55,240.5,0.1]
[1732164377053,13.2127,240.59,240.52,23.86349301]
[1732164377476,13.2127,240.59,240.52,23.96349301]
[1732164377843,23.86349301,240.53,240.44,0.1]
[1732164378155,13.2127,240.59,240.44,5.67712292]
[1732164378156,23.86349301,240.51,240.44,5.67712292]
[1732164378348,23.86349301,240.55,240.47,23.86349301]
[1732164378662,42.1986,240.67,240.51,23.86349301]
[1732164378969,23.86349301,240.61,240.53,23.86349301]
[1732164379279,42.1986,240.67,240.53,0.1]
[1732164379565,23.86349301,240.55,240.48,5.67712292]
[1732164379778,23.86349301,240.55,240.48,0.1]
[1732164380872,23.86349301,240.57,240.49,23.86349301]
[1732164381285,23.86349301,240.59,240.51,23.86349301]
[1732164381969,23.86349301,240.59,240.51,0.1]
[1732164382180,23.86349301,240.57,240.51,0.1]
[1732164383157,23.86349301,240.59,240.51,23.96349301]
[1732164384446,23.86349301,240.59,240.51,0.1]
[1732164384679,14.90729616,240.58,240.51,0.1]
[1732164387076,14.90729616,240.6,240.52,14.90729616]
[1732164387265,14.90729616,240.6,240.52,15.00729616]
[1732164388375,14.90729616,240.62,240.54,14.90729616]
[1732164388753,42.1986,240.67,240.54,14.90729616]
[1732164388980,14.90729616,240.61,240.54,15.00729616]
[1732164389450,42.1986,240.67,240.54,0.1]
[1732164389653,14.90729616,240.6,240.52,20.58441908]
[1732164389857,14.90729616,240.6,240.53,5.57712292]
[1732164391790,14.90729616,240.56,240.52,0.1]
[1732164392579,14.90729616,240.54,240.48,0.1]
[1732164392784,14.90729616,240.52,240.48,0.1]
[1732164392960,14.90729616,240.55,240.48,0.1]
[1732164393284,14.90729616,240.58,240.5,14.90729616]
[1732164393799,14.90729616,240.56,240.48,20.58441908]
[1732164393955,14.90729616,240.56,240.49,5.57712292]
[1732164394362,14.90729616,240.56,240.5,14.90729616]
[1732164394581,14.90729616,240.56,240.51,5.57712292]
[1732164395263,14.90729616,240.56,240.5,0.1]
[1732164395882,14.90729616,240.54,240.5,0.1]
[1732164397784,14.90729616,240.54,240.46,15.00729616]
[1732164397969,14.90729616,240.54,240.47,5.57712292]
[1732164398487,14.90729616,240.52,240.47,5.57712292]
[1732164398664,14.90729616,240.5,240.44,0.1]
[1732164398870,14.90729616,240.52,240.44,20.58441908]
[1732164399070,14.90729616,240.52,240.45,5.57712292]
[1732164400160,14.90729616,240.5,240.45,5.57712292]
[1732164400408,14.90729616,240.52,240.45,5.57712292]
[1732164401570,14.90729616,240.55,240.48,14.90729616]
[1732164402886,14.90729616,240.57,240.49,14.90729616]
[1732164403387,14.90729616,240.57,240.5,14.90729616]
[1732164403909,14.90729616,240.59,240.51,5.57712292]
[1732164404196,14.90729616,240.59,240.51,20.48441908]
[1732164404699,14.90729616,240.57,240.49,14.90729616]
[1732164404989,14.90729616,240.55,240.47,14.90729616]
[1732164405368,14.90729616,240.51,240.45,5.67712292]
[1732164405572,14.90729616,240.51,240.45,5.57712292]
[1732164406779,44.1047,240.54,240.47,14.90729616]
[1732164407179,14.90729616,240.53,240.45,20.48441908]
[1732164407403,44.1047,240.54,240.45,20.48441908]
[1732164407404,14.90729616,240.51,240.45,20.48441908]
[1732164407578,14.90729616,240.52,240.45,5.57712292]
[1732164407965,14.90729616,240.51,240.45,5.57712292]
[1732164408181,14.90729616,240.51,240.44,14.90729616]
[1732164408397,14.90729616,240.5,240.43,0.1]
[1732164408569,44.1047,240.54,240.4,14.90729616]
[1732164408570,14.90729616,240.47,240.4,14.90729616]
[1732164409196,14.90729616,240.45,240.38,14.90729616]
[1732164409603,14.90729616,240.46,240.39,14.90729616]
[1732164409791,14.90729616,240.47,240.4,14.90729616]
[1732164409996,14.90729616,240.46,240.39,14.90729616]
[1732164410189,14.90729616,240.45,240.38,14.90729616]
[1732164410399,14.90729616,240.45,240.37,14.90729616]
[1732164410869,14.90729616,240.45,240.38,14.90729616]
[1732164411269,14.90729616,240.46,240.38,14.90729616]
[1732164411901,14.90729616,240.45,240.38,14.90729616]
[1732164412197,14.90729616,240.46,240.38,14.90729616]
[1732164412502,0.5,240.53,240.38,14.90729616]
[1732164412693,14.90729616,240.46,240.39,14.90729616]
[1732164413207,14.90729616,240.4,240.32,3.71911429]
[1732164413381,14.90729616,240.36,240.28,14.90729616]
[1732164413588,14.90729616,240.38,240.3,14.90729616]
[1732164413903,45.0382,240.4,240.33,14.90729616]
[1732164414270,59.94549616,240.4,240.33,14.90729616]
[1732164415495,44.3428,240.46,240.39,14.90729616]
[1732164415694,44.3428,240.46,240.33,5.60490069]
[1732164415695,44.3428,240.46,240.42,14.90729616]
[1732164418494,44.3428,240.46,240.34,5.50490069]
[1732164418495,14.90729616,240.45,240.37,14.90729616]
[1732164418710,44.3428,240.46,240.33,0.1]
[1732164418711,14.90729616,240.43,240.35,14.90729616]
[1732164418881,14.90729616,240.41,240.33,15.00729616]
[1732164419075,14.90729616,240.38,240.31,14.90729616]
[1732164419384,14.90729616,240.38,240.28,0.1]
[1732164419573,14.90729616,240.37,240.29,14.90729616]
[1732164420188,14.90729616,240.38,240.3,14.90729616]
[1732164420595,14.90729616,240.38,240.29,0.1]
[1732164420802,14.90729616,240.38,240.3,14.90729616]
[1732164421101,14.90729616,240.36,240.29,0.1]
[1732164421274,14.90729616,240.32,240.21,0.1]
[1732164421597,60.64589616,240.35,240.27,14.90729616]
[1732164421802,45.7386,240.35,240.28,14.90729616]
[1732164422319,45.7386,240.35,240.29,14.90729616]
[1732164422516,60.64589616,240.35,240.27,14.90729616]
[1732164422690,14.90729616,240.31,240.25,14.90729616]
[1732164422999,14.90729616,240.31,240.23,14.90729616]
[1732164423974,14.90729616,240.29,240.21,14.90729616]
[1732164424183,46.2386,240.35,240.18,0.1]
[1732164424184,14.90729616,240.27,240.19,14.90729616]
[1732164424676,14.90729616,240.28,240.21,14.90729616]
[1732164424980,14.90729616,240.26,240.18,14.90729616]
[1732164425205,14.90729616,240.24,240.16,14.90729616]
[1732164425507,14.90729616,240.2,240.11,14.90729616]
[1732164425750,14.90729616,240.2,240.09,5.60490069]
[1732164425751,14.90729616,240.18,240.09,20.41219685]
[1732164425880,14.90729616,240.16,240.09,14.90729616]
[1732164426400,14.90729616,240.16,240.05,0.1]
[1732164426608,14.90729616,240.16,240.07,14.90729616]
[1732164426989,14.90729616,240.14,240.07,14.90729616]
[1732164427304,14.90729616,240.12,240.05,14.90729616]
[1732164427991,46.3894,240.11,240.04,5.50490069]
[1732164428190,46.3894,240.11,240.03,14.90729616]
[1732164428392,46.3894,240.11,240.05,14.90729616]
[1732164428629,46.3894,240.11,240.08,14.90729616]
[1732164428778,0.5,240.18,240.1,14.90729616]
[1732164428779,46.3894,240.17,240.1,14.90729616]
[1732164428974,15.40729616,240.24,240.09,5.50490069]
[1732164428975,45.6338,240.24,240.09,5.50490069]
[1732164429197,45.6338,240.24,240.15,14.90729616]
[1732164429379,45.6338,240.24,240.11,5.50490069]
[1732164429593,14.90729616,240.23,240.16,14.90729616]
[1732164429791,45.6338,240.24,240.15,14.90729616]
[1732164429792,14.90729616,240.22,240.15,14.90729616]
[1732164430099,14.90729616,240.22,240.09,0.1]
[1732164430100,14.90729616,240.16,240.09,0.1]
[1732164430300,14.90729616,240.15,240.08,14.90729616]
[1732164430504,14.90729616,240.15,240.07,14.90729616]
[1732164431088,14.90729616,240.17,240.1,14.90729616]
[1732164431509,60.54109616,240.24,240.01,13.85505788]
[1732164431510,45.6338,240.24,240.16,14.90729616]
[1732164431803,45.6338,240.24,240.17,14.90729616]
[1732164432714,60.54109616,240.24,240.17,14.90729616]
[1732164432884,45.6338,240.24,240.17,14.90729616]
[1732164433087,60.54109616,240.24,240.17,14.90729616]
[1732164433314,60.54109616,240.24,240.16,14.90729616]
[1732164433891,60.54109616,240.24,240.17,14.90729616]
[1732164434086,45.6338,240.24,240.17,14.90729616]
[1732164434519,14.90729616,240.23,240.17,14.90729616]
[1732164434887,45.6338,240.24,240.17,14.90729616]
[1732164435307,14.90729616,240.23,240.15,14.90729616]
[1732164435510,14.90729616,240.19,240.11,14.90729616]
[1732164435812,14.90729616,240.17,240.11,14.90729616]
[1732164436019,14.90729616,240.15,240.07,14.90729616]
[1732164436908,23.776884,240.16,240.02,5.50490069]
[1732164437107,14.90729616,240.17,240.02,5.50490069]
[1732164437108,14.90729616,240.17,240.11,14.90729616]
[1732164437426,14.90729616,240.21,240.13,14.90729616]
[1732164437595,14.90729616,240.23,240.15,14.90729616]
[1732164438622,69.55419195,240.24,240.16,23.92039195]
[1732164439302,23.92039195,240.22,240.14,23.92039195]
[1732164439503,23.92039195,240.2,240.12,23.92039195]
[1732164440519,23.92039195,240.16,240.08,23.92039195]
[1732164440829,23.92039195,240.14,240.06,23.92039195]
[1732164441117,12.3031,240.13,240.06,23.92039195]
[1732164442003,23.776884,240.11,240.04,23.92039195]
[1732164442527,23.776884,240.11,240.02,23.92039195]
[1732164442528,23.92039195,240.1,240.02,23.92039195]
[1732164442695,23.92039195,240.1,240.04,23.92039195]
[1732164442900,23.92039195,240.1,239.98,5.50490069]
[1732164442901,23.776884,240.09,240.02,23.92039195]
[1732164443123,23.776884,240.09,239.92,4.77374422]
[1732164443124,23.92039195,240.05,239.92,4.87374422]
[1732164443314,31.2674,240.04,239.96,23.92039195]
[1732164443705,47.69727595,240.03,239.9,5.50490069]
[1732164444025,12.667,240.02,239.96,23.92039195]
[1732164444196,12.667,240.02,239.98,23.92039195]
[1732164444909,31.2674,240.04,239.9,10.37864491]
[1732164444910,31.2674,240.04,240.01,23.92039195]
[1732164445122,12.667,240.09,240.03,23.92039195]
[1732164445435,12.667,240.09,240.08,23.92039195]
[1732164445749,31.2674,240.1,240.08,23.92039195]
[1732164446104,31.2674,240.1,240.06,23.92039195]
[1732164446910,31.2674,240.1,240.03,5.50490069]
[1732164446911,31.2674,240.1,240.08,23.92039195]
[1732164447520,31.2674,240.1,240.06,23.92039195]
[1732164447906,31.2674,240.1,240.02,23.92039195]
[1732164448225,31.2674,240.1,239.98,23.92039195]
[1732164448226,23.92039195,240.05,239.98,23.92039195]
[1732164449203,23.92039195,240.08,240.0,23.92039195]
[1732164450413,55.18779195,240.1,240.02,23.92039195]
[1732164450927,23.92039195,240.08,240.0,23.92039195]
[1732164451311,23.776884,240.07,240.0,23.92039195]
[1732164452031,23.92039195,240.06,239.98,23.92039195]
[1732164452741,23.92039195,240.06,239.92,0.1]
[1732164452742,23.776884,240.05,239.97,23.92039195]
[1732164452920,23.92039195,240.04,239.97,23.92039195]
[1732164453120,12.8586,240.03,239.97,23.92039195]
[1732164453417,47.69727595,240.02,239.93,23.92039195]
[1732164453620,12.8586,240.03,239.93,23.92039195]
[1732164453621,23.776884,239.99,239.93,23.92039195]
[1732164453817,23.776884,239.99,239.9,5.50490069]
[1732164454038,47.69727595,239.94,239.87,23.92039195]
[1732164454549,23.776884,239.89,239.82,23.92039195]
[1732164454843,33.3119,239.9,239.82,23.92039195]
[1732164455444,23.776884,239.88,239.82,23.92039195]
[1732164456234,23.92039195,239.87,239.78,32.25392553]
[1732164456435,23.776884,239.86,239.78,32.25392553]
[1732164456747,23.92039195,239.89,239.82,23.92039195]
[1732164457618,23.776884,239.88,239.8,23.92039195]
[1732164457813,23.92039195,239.87,239.8,23.92039195]
[1732164458128,23.776884,239.84,239.78,23.92039195]
[1732164458327,23.776884,239.84,239.76,23.92039195]
[1732164458520,36.10709195,239.83,239.76,23.92039195]
[1732164458722,23.776884,239.82,239.76,23.92039195]
[1732164459549,12.1867,239.83,239.69,11.59007568]
[1732164459756,33.3119,239.9,239.82,23.92039195]
[1732164459757,45.4986,239.9,239.82,23.92039195]
[1732164459926,45.4986,239.9,239.76,23.92039195]
[1732164459927,45.4986,239.9,239.86,23.92039195]
[1732164460127,45.4986,239.9,239.84,23.92039195]
[1732164460433,23.92039195,239.88,239.82,23.92039195]
[1732164460653,69.41899195,239.9,239.82,23.92039195]
[1732164460836,45.4986,239.9,239.84,23.92039195]
[1732164461353,23.776884,239.89,239.84,23.92039195]
[1732164462340,45.4986,239.9,239.84,23.92039195]
[1732164462560,45.4986,239.9,239.87,23.92039195]
[1732164463032,23.92039195,239.88,239.79,23.92039195]
[1732164463230,69.41899195,239.9,239.81,23.92039195]
[1732164463539,69.41899195,239.9,239.76,32.07661785]
[1732164463540,45.4986,239.9,239.83,23.92039195]
[1732164463853,45.4986,239.9,239.87,23.92039195]
[1732164464241,44.0473,239.95,239.89,23.92039195]
[1732164464755,44.0473,239.95,239.87,23.92039195]
[1732164465266,23.92039195,239.92,239.83,23.92039195]
[1732164465431,23.92039195,239.92,239.76,32.07758515]
[1732164465432,23.92039195,239.9,239.81,23.92039195]
[1732164465633,23.776884,239.89,239.81,23.92039195]
[1732164466443,23.776884,239.87,239.79,23.92039195]
[1732164466953,23.776884,239.87,239.76,8.1571932]
[1732164466954,23.776884,239.89,239.83,23.92039195]
[1732164467944,23.776884,239.89,239.82,20.0]
[1732164468931,23.776884,239.89,239.72,8.46257827]
[1732164468932,23.92039195,239.88,239.72,8.46257827]
[1732164469240,0.5,239.93,239.78,23.92039195]
[1732164469241,23.776884,239.85,239.78,23.92039195]
[1732164469443,23.776884,239.83,239.78,23.92039195]
[1732164470360,23.776884,239.83,239.79,20.0]
[1732164470942,44.0473,239.91,239.82,23.92039195]
[1732164471149,44.0473,239.91,239.84,23.92039195]
[1732164473056,44.0473,239.91,239.76,23.92039195]
[1732164473057,44.0473,239.91,239.87,20.0]
[1732164473760,27.1078,239.91,239.88,23.92039195]
[1732164473966,51.02819195,239.91,239.76,8.40013019]
[1732164474139,51.02819195,239.91,239.81,23.92039195]
[1732164474140,23.92039195,239.89,239.81,23.92039195]
[1732164474744,23.776884,239.88,239.81,23.92039195]
[1732164475064,23.92039195,239.85,239.77,23.92039195]
[1732164475272,23.776884,239.87,239.79,23.92039195]
[1732164475466,23.776884,239.85,239.79,23.92039195]
[1732164475976,23.776884,239.85,239.77,23.92039195]
[1732164476349,23.776884,239.83,239.75,23.92039195]
[1732164476571,23.776884,239.83,239.77,23.92039195]
[1732164477078,23.776884,239.85,239.77,23.92039195]
[1732164477578,23.776884,239.85,239.78,20.0]
[1732164478368,23.92039195,239.84,239.75,23.92039195]
[1732164478576,23.776884,239.83,239.75,23.92039195]
[1732164479155,40.58597495,239.86,239.79,23.92039195]
[1732164479352,23.776884,239.85,239.79,23.92039195]
[1732164479546,23.92039195,239.9,239.82,20.0]
[1732164479771,27.1078,239.91,239.86,23.92039195]
[1732164480171,23.92039195,239.9,239.82,23.92039195]
[1732164480477,27.1078,239.91,239.85,20.0]
[1732164480790,27.1078,239.91,239.87,20.0]
[1732164480947,23.92039195,239.98,239.9,23.92039195]
[1732164481151,68.66899195,240.02,239.94,23.92039195]
[1732164481381,44.7486,240.02,239.95,20.0]
[1732164481548,44.7486,240.02,239.97,20.0]
[1732164481745,44.7486,240.02,239.99,20.0]
[1732164481968,23.92039195,240.02,239.94,23.92039195]
[1732164482186,23.92039195,240.0,239.93,20.0]
[1732164482488,23.92039195,239.98,239.91,20.0]
[1732164483088,23.92039195,239.96,239.89,20.0]
[1732164483576,23.92039195,239.98,239.89,20.0]
[1732164483779,23.776884,239.97,239.89,20.0]
[1732164484091,23.92039195,239.94,239.87,20.0]
[1732164485595,23.776884,239.93,239.87,20.0]
[1732164486871,13.1058,239.95,239.88,23.92039195]
[1732164487066,13.1058,239.95,239.89,20.0]
[1732164487796,13.1058,239.95,239.88,23.92039195]
[1732164487797,23.776884,239.94,239.87,20.0]
[1732164488196,47.69727595,239.94,239.87,20.0]
[1732164488783,23.92039195,239.92,239.84,23.92039195]
[1732164489092,23.92039195,239.92,239.85,20.0]
[1732164489280,23.776884,239.91,239.82,23.92039195]
[1732164489594,23.776884,239.91,239.84,23.92039195]
[1732164489896,13.1058,239.95,239.9,23.92039195]
[1732164490099,13.1058,239.95,239.92,23.92039195]
[1732164490887,13.1058,239.95,239.9,23.92039195]
[1732164491087,13.1058,239.95,239.91,20.0]
[1732164492199,47.69727595,239.94,239.89,20.0]
[1732164492371,47.69727595,239.94,239.87,20.0]
[1732164492568,47.69727595,239.94,239.81,4.49990069]
[1732164492569,23.776884,239.94,239.93,23.92039195]
[1732164492784,12.2356,240.0,239.94,20.0]
[1732164493690,12.2356,240.0,239.95,23.92039195]
[1732164494684,12.2356,240.0,239.94,20.0]
[1732164494992,23.776884,239.99,239.94,20.0]
[1732164496192,16.652517,240.05,239.98,20.0]
[1732164496506,12.2356,240.06,239.99,20.0]
[1732164496897,23.92039195,240.05,239.99,20.0]
[1732164497071,12.2356,240.06,240.0,23.92039195]
[1732164497268,23.92039195,240.11,240.02,23.92039195]
[1732164497894,23.92039195,240.11,240.03,20.0]
[1732164498092,23.92039195,240.09,240.03,20.0]
[1732164498293,23.92039195,240.07,240.0,23.92039195]
[1732164498470,23.92039195,240.07,239.99,20.0]
[1732164498670,23.776884,240.06,239.99,20.0]
[1732164499105,23.92039195,240.05,239.99,20.0]
[1732164499314,23.92039195,240.03,239.97,20.0]
[1732164499601,23.92039195,240.01,239.94,23.92039195]
[1732164500167,23.776884,240.02,239.94,23.92039195]
[1732164500371,23.92039195,240.03,239.96,23.92039195]
[1732164500668,23.92039195,240.09,240.02,23.92039195]
[1732164500976,23.92039195,240.11,240.04,23.92039195]
[1732164501572,23.92039195,240.11,240.05,20.0]
[1732164502179,23.92039195,240.09,240.02,23.92039195]
[1732164502390,23.776884,240.06,240.01,20.0]
[1732164503310,23.776884,240.06,240.0,23.92039195]
[1732164503469,23.776884,240.06,240.01,20.0]
[1732164504794,23.776884,240.08,240.01,20.0]
[1732164505297,23.92039195,240.09,240.02,23.92039195]
[1732164506317,23.92039195,240.07,240.0,23.92039195]
[1732164506496,23.92039195,240.07,240.01,20.0]
[1732164506911,23.92039195,240.11,240.02,23.92039195]
[1732164507112,23.776884,240.1,240.02,23.92039195]
[1732164507419,44.1085,240.12,240.09,23.92039195]
[1732164507596,40.56449795,240.17,240.09,23.92039195]
[1732164507917,23.92039195,240.16,240.08,20.0]
[1732164508724,23.92039195,240.16,240.07,23.92039195]
[1732164508894,23.92039195,240.16,240.08,20.0]
[1732164509226,23.92039195,240.14,240.05,23.92039195]
[1732164509518,23.92039195,240.14,240.06,20.0]
[1732164509689,23.92039195,240.13,240.06,43.92039195]
[1732164509893,23.92039195,240.12,240.06,20.0]
[1732164511794,23.92039195,240.1,240.02,20.0]
[1732164512522,23.92039195,240.08,240.0,24.02039195]
[1732164512711,23.92039195,240.06,239.98,23.92039195]
[1732164513503,23.92039195,240.05,239.98,23.92039195]
[1732164514118,23.92039195,240.05,239.99,20.0]
[1732164514310,23.92039195,240.05,239.98,23.92039195]
[1732164515325,23.92039195,240.05,239.97,23.92039195]
[1732164515694,23.92039195,240.03,239.96,20.0]
[1732164515890,23.92039195,240.03,239.95,23.92039195]
[1732164516419,23.92039195,240.04,239.96,23.92039195]
[1732164516617,23.92039195,240.05,239.98,23.92039195]
[1732164516810,23.92039195,240.05,239.9,0.1]
[1732164516811,23.92039195,240.08,240.01,23.92039195]
[1732164517118,44.2184,240.12,240.03,43.92039195]
[1732164517119,23.92039195,240.1,240.03,43.92039195]
[1732164517414,44.2184,240.12,240.07,20.0]
[1732164517821,23.92039195,240.11,240.07,20.0]
[1732164518023,68.13879195,240.12,240.05,20.0]
[1732164518621,23.92039195,240.1,240.04,20.0]
[1732164518916,23.92039195,240.11,240.04,23.92039195]
[1732164519122,23.92039195,240.11,240.05,20.0]
[1732164519425,68.13879195,240.12,240.05,20.0]
[1732164520034,44.2184,240.12,240.05,43.92039195]
[1732164520326,44.2184,240.12,240.01,8.19669721]
[1732164520327,44.2184,240.12,240.07,20.0]
[1732164520837,44.2184,240.12,240.06,20.0]
[1732164521004,23.92039195,240.14,240.08,20.0]
[1732164521328,23.92039195,240.13,240.08,20.0]
[1732164521701,23.92039195,240.13,240.06,20.0]
[1732164522123,23.92039195,240.12,240.06,20.0]
[1732164522525,23.92039195,240.13,240.06,43.92039195]
[1732164523302,23.92039195,240.15,240.08,23.92039195]
[1732164523919,23.92039195,240.14,240.06,23.92039195]
[1732164524228,23.92039195,240.13,240.07,20.0]
[1732164524534,69.16459195,240.18,240.11,23.92039195]
[1732164524741,23.92039195,240.19,240.12,43.92039195]
[1732164525226,23.92039195,240.19,240.12,20.0]
[1732164525705,23.92039195,240.2,240.12,23.92039195]
[1732164526036,23.92039195,240.2,240.13,20.0]
[1732164526224,23.92039195,240.19,240.13,20.0]
[1732164526432,23.92039195,240.18,240.13,20.0]
[1732164526612,23.92039195,240.21,240.14,23.92039195]
[1732164526927,23.92039195,240.2,240.14,20.0]
[1732164527130,23.92039195,240.19,240.14,20.0]
[1732164527332,23.92039195,240.16,240.06,8.39822641]
[1732164527509,45.9313,240.18,240.01,23.92039195]
[1732164527510,23.92039195,240.08,240.01,23.92039195]
[1732164527711,23.92039195,240.08,239.99,24.02039195]
[1732164528611,23.776884,240.17,240.0,0.5]
[1732164528814,23.92039195,240.15,240.07,23.92039195]
[1732164529011,23.92039195,240.15,240.08,20.0]
[1732164529221,23.92039195,240.17,240.09,23.92039195]
[1732164529537,23.92039195,240.19,240.12,20.0]
[1732164530038,23.92039195,240.21,240.14,20.0]
[1732164530634,40.55717895,240.21,240.14,20.0]
[1732164531244,16.636787,240.21,240.15,23.92039195]
[1732164531440,23.92039195,240.27,240.19,23.92039195]
[1732164531747,16.63432,240.26,240.2,20.0]
[1732164534617,23.92039195,240.23,240.15,43.92039195]
[1732164535024,23.92039195,240.23,240.15,23.92039195]
[1732164535247,23.92039195,240.19,240.11,23.92039195]
[1732164535724,23.92039195,240.19,240.11,32.04895183]
[1732164536440,23.92039195,240.24,240.16,23.92039195]
[1732164536748,16.63432,240.26,240.21,20.0]
[1732164537245,23.92039195,240.28,240.21,20.0]
[1732164537961,23.92039195,240.26,240.19,20.0]
[1732164538242,23.92039195,240.24,240.17,0.1]
[1732164538411,23.92039195,240.22,240.17,0.1]
[1732164538938,23.92039195,240.2,240.17,0.1]
[1732164539144,23.92039195,240.2,240.12,23.92039195]
[1732164539436,23.92039195,240.18,240.11,8.12855988]
[1732164539643,23.92039195,240.18,240.1,23.92039195]
[1732164540141,23.92039195,240.22,240.14,23.92039195]
[1732164540328,23.92039195,240.22,240.15,20.0]
[1732164541222,23.92039195,240.2,240.13,20.0]
[1732164542950,30.2752,240.3,240.08,41.12981104]
[1732164542951,23.92039195,240.16,240.08,32.29020299]
[1732164543116,23.92039195,240.16,240.08,24.02039195]
[1732164543516,23.92039195,240.16,240.08,23.92039195]
[1732164543746,23.92039195,240.12,240.06,0.1]
[1732164543923,23.92039195,240.12,240.04,24.02039195]
[1732164544123,23.92039195,240.1,240.04,0.1]
[1732164544341,23.92039195,240.1,240.03,0.1]
[1732164544527,23.92039195,240.08,240.03,0.1]
[1732164544742,23.92039195,240.08,239.97,31.2449]
[1732164544743,23.92039195,240.06,239.98,23.92039195]
[1732164544920,23.92039195,240.12,239.96,23.92039195]
[1732164544921,23.92039195,240.04,239.96,23.92039195]
[1732164545230,23.92039195,240.02,239.94,23.92039195]
[1732164546045,23.92039195,239.96,239.88,24.02039195]
[1732164546227,23.92039195,239.94,239.88,23.92039195]
[1732164546419,23.92039195,239.95,239.87,24.02039195]
[1732164547352,32.2939,240.05,239.85,23.92039195]
[1732164547353,23.92039195,239.93,239.85,23.92039195]
[1732164547827,23.92039195,239.91,239.85,23.92039195]
[1732164548325,23.92039195,239.93,239.83,8.59829207]
[1732164548530,23.92039195,239.91,239.84,23.92039195]
[1732164548724,23.92039195,239.89,239.82,23.92039195]
[1732164548924,23.92039195,239.87,239.8,23.92039195]
[1732164549338,23.92039195,239.87,239.78,32.31009371]
[1732164549534,23.92039195,239.87,239.78,23.92039195]
[1732164550229,23.92039195,239.87,239.76,5.03632273]
[1732164550230,23.92039195,239.85,239.76,28.95671468]
[1732164550432,23.92039195,239.83,239.74,23.92039195]
[1732164550870,23.92039195,239.81,239.72,23.92039195]
[1732164552126,23.92039195,239.81,239.73,20.0]
[1732164552451,23.92039195,239.79,239.71,23.92039195]
[1732164553049,23.92039195,239.77,239.69,23.92039195]
[1732164553230,23.92039195,239.76,239.69,23.92039195]
[1732164553547,23.92039195,239.7,239.62,23.92039195]
[1732164553750,23.92039195,239.71,239.63,23.92039195]
[1732164554046,23.92039195,239.75,239.63,4.93632273]
[1732164554228,23.92039195,239.76,239.69,23.92039195]
[1732164554430,13.0218,239.77,239.7,23.92039195]
[1732164554636,36.94219195,239.77,239.69,23.92039195]
[1732164555042,13.0218,239.77,239.74,23.92039195]
[1732164555246,32.2234,239.8,239.77,20.0]
[1732164555445,36.94219195,239.84,239.77,43.42039195]
[1732164557246,23.776884,239.83,239.77,43.42039195]
[1732164557462,23.776884,239.83,239.76,20.0]
[1732164557660,36.94219195,239.84,239.73,23.92039195]
[1732164557661,23.776884,239.81,239.73,23.92039195]
[1732164557963,23.776884,239.81,239.74,20.0]
[1732164558667,23.92039195,239.82,239.75,23.92039195]
[1732164558859,13.0218,239.84,239.69,20.0]
[1732164558860,36.94219195,239.84,239.76,43.92039195]
[1732164559048,32.2234,239.86,239.81,20.0]
[1732164559358,56.14379195,239.86,239.81,20.0]
[1732164559759,56.14379195,239.86,239.79,19.5]
[1732164560279,16.662626,239.89,239.82,23.92039195]
[1732164560280,23.92039195,239.88,239.82,23.92039195]
[1732164560478,36.96379195,239.9,239.82,23.92039195]
[1732164560644,12.4534,239.95,239.88,23.92039195]
[1732164561848,23.92039195,239.93,239.85,23.92039195]